[Event "Betsys MČR v online bleskovém šachu 2021"]
[Site "Chess.com"]
[Date "2021.04.17"]
[Round "5"]
[White "Vitana"]
[Black "dino5517"]
[Result "1-0"]
[WhiteElo "1870"]
[BlackElo "1389"]
[TimeControl "180+1"]
[EndTime "9:47:26 PDT"]
[Termination "Uživatel Vitana zvítězil matem"]

1. e4 {[%clk 0:03:00.9]} 1... e5 {[%clk 0:02:59.4]} 2. Nc3 {[%clk 0:03:00.5]}
2... f5 {[%clk 0:02:54.3]} 3. exf5 {[%clk 0:02:59.3]} 3... d5 {[%clk 0:02:52.7]}
4. d4 {[%clk 0:02:55.7]} 4... e4 {[%clk 0:02:49.2]} 5. Be3 {[%clk 0:02:53.4]}
5... Nf6 {[%clk 0:02:48.3]} 6. Nge2 {[%clk 0:02:50.9]} 6... Bd7 {[%clk
0:02:47.8]} 7. Ng3 {[%clk 0:02:50.3]} 7... Bd6 {[%clk 0:02:47.1]} 8. Bg5 {[%clk
0:02:45.3]} 8... h6 {[%clk 0:02:42.2]} 9. Bxf6 {[%clk 0:02:43.7]} 9... Qxf6
{[%clk 0:02:40.9]} 10. Nxd5 {[%clk 0:02:42]} 10... Qg5 {[%clk 0:02:23.5]} 11.
Qh5+ {[%clk 0:02:34.4]} 11... Qxh5 {[%clk 0:02:22]} 12. Nxh5 {[%clk 0:02:34.4]}
12... Nc6 {[%clk 0:02:18.7]} 13. O-O-O {[%clk 0:02:28.3]} 13... O-O-O {[%clk
0:02:15]} 14. Nxg7 {[%clk 0:02:24.7]} 14... Nb4 {[%clk 0:01:59.5]} 15. Nxb4
{[%clk 0:02:22.8]} 15... Bxb4 {[%clk 0:01:58.1]} 16. Ne6 {[%clk 0:02:21.5]}
16... Rde8 {[%clk 0:01:54.5]} 17. Bc4 {[%clk 0:02:15.8]} 17... b5 {[%clk
0:01:36.9]} 18. Bb3 {[%clk 0:02:13.9]} 18... a5 {[%clk 0:01:35.7]} 19. a3 {[%clk
0:02:12.6]} 19... Bd6 {[%clk 0:01:34.2]} 20. Rde1 {[%clk 0:02:09.8]} 20... b4
{[%clk 0:01:22.6]} 21. axb4 {[%clk 0:02:07.3]} 21... a4 {[%clk 0:01:20.1]} 22.
Ba2 {[%clk 0:02:04.2]} 22... Bxb4 {[%clk 0:01:20.1]} 23. c3 {[%clk 0:02:04.3]}
23... Bd6 {[%clk 0:01:17.5]} 24. Rxe4 {[%clk 0:02:00.6]} 24... a3 {[%clk
0:01:15.1]} 25. Rhe1 {[%clk 0:01:58.3]} 25... axb2+ {[%clk 0:01:11.7]} 26. Kxb2
{[%clk 0:01:58]} 26... Kb7 {[%clk 0:01:10.5]} 27. Nc5+ {[%clk 0:01:51.1]} 27...
Bxc5 {[%clk 0:01:05.4]} 28. Rxe8 {[%clk 0:01:49.4]} 28... Bxe8 {[%clk
0:01:01.9]} 29. dxc5 {[%clk 0:01:48.6]} 29... Bc6 {[%clk 0:00:52.8]} 30. f3
{[%clk 0:01:44]} 30... Rd8 {[%clk 0:00:53]} 31. Re2 {[%clk 0:01:41.9]} 31... Rf8
{[%clk 0:00:48.6]} 32. Re5 {[%clk 0:01:36.3]} 32... Ka6 {[%clk 0:00:46.7]} 33.
Bc4+ {[%clk 0:01:33.6]} 33... Kb7 {[%clk 0:00:43.8]} 34. Bd5 {[%clk 0:01:30.1]}
34... Bxd5 {[%clk 0:00:42.9]} 35. Rxd5 {[%clk 0:01:30.2]} 35... Kc6 {[%clk
0:00:42.9]} 36. Re5 {[%clk 0:01:30.5]} 36... Kd7 {[%clk 0:00:39.8]} 37. Kb3
{[%clk 0:01:26.2]} 37... c6 {[%clk 0:00:39.3]} 38. Kc4 {[%clk 0:01:25.4]} 38...
Ra8 {[%clk 0:00:33.7]} 39. g4 {[%clk 0:01:24.6]} 39... Ra2 {[%clk 0:00:30.5]}
40. f6 {[%clk 0:01:20.2]} 40... Ra8 {[%clk 0:00:28.3]} 41. f4 {[%clk 0:01:18]}
41... Rf8 {[%clk 0:00:27]} 42. g5 {[%clk 0:01:17.6]} 42... hxg5 {[%clk
0:00:26.2]} 43. fxg5 {[%clk 0:01:17.6]} 43... Kc7 {[%clk 0:00:25.4]} 44. Re7+
{[%clk 0:01:16.4]} 44... Kd8 {[%clk 0:00:25.3]} 45. Ra7 {[%clk 0:01:15.4]} 45...
Ke8 {[%clk 0:00:22.3]} 46. Ra8+ {[%clk 0:01:13.2]} 46... Kf7 {[%clk 0:00:22.6]}
47. Rxf8+ {[%clk 0:01:13.2]} 47... Kxf8 {[%clk 0:00:22.9]} 48. g6 {[%clk
0:01:13.6]} 48... Kg8 {[%clk 0:00:22.1]} 49. Kd4 {[%clk 0:01:13.9]} 49... Kh8
{[%clk 0:00:21.4]} 50. Ke5 {[%clk 0:01:14.1]} 50... Kg8 {[%clk 0:00:20.6]} 51.
Ke6 {[%clk 0:01:14.2]} 51... Kf8 {[%clk 0:00:20.5]} 52. g7+ {[%clk 0:01:12.3]}
52... Kg8 {[%clk 0:00:19.9]} 53. Ke7 {[%clk 0:01:11.3]} 53... Kh7 {[%clk
0:00:17.4]} 54. f7 {[%clk 0:01:09.2]} 54... Kxg7 {[%clk 0:00:15.7]} 55. f8=Q+
{[%clk 0:01:08]} 55... Kh7 {[%clk 0:00:15.9]} 56. Qf2 {[%clk 0:01:06.2]} 56...
Kh6 {[%clk 0:00:14.1]} 57. Qg3 {[%clk 0:01:06.7]} 57... Kh5 {[%clk 0:00:13.9]}
58. Kf6 {[%clk 0:01:05.2]} 58... Kh6 {[%clk 0:00:13.4]} 59. Qh4# {[%clk
0:01:05]} 1-0

[Event "Betsys MČR v online bleskovém šachu 2021"]
[Site "Chess.com"]
[Date "2021.04.17"]
[Round "5"]
[White "Millbo64"]
[Black "xnepom"]
[Result "0-1"]
[WhiteElo "1998"]
[BlackElo "2249"]
[TimeControl "180+1"]
[EndTime "9:47:27 PDT"]
[Termination "Uživatel xnepom zvítězil na čas"]

1. d4 {[%clk 0:03:00.9]} 1... d5 {[%clk 0:02:59.7]} 2. Bf4 {[%clk 0:03:00.9]}
2... c5 {[%clk 0:02:52.8]} 3. c3 {[%clk 0:03:01]} 3... Nc6 {[%clk 0:02:51.7]} 4.
e3 {[%clk 0:02:58.1]} 4... Qb6 {[%clk 0:02:51.8]} 5. Nd2 {[%clk 0:02:47.1]} 5...
Qxb2 {[%clk 0:02:46.3]} 6. Ngf3 {[%clk 0:02:27.6]} 6... Bf5 {[%clk 0:02:43.6]}
7. dxc5 {[%clk 0:02:18.5]} 7... Nf6 {[%clk 0:02:36.2]} 8. Nd4 {[%clk 0:02:10.9]}
8... Bg6 {[%clk 0:02:17.5]} 9. Bb5 {[%clk 0:01:40.9]} 9... Rc8 {[%clk
0:02:04.2]} 10. O-O {[%clk 0:01:38.9]} 10... Nd7 {[%clk 0:02:04.3]} 11. Qc1
{[%clk 0:01:06.4]} 11... Qxc1 {[%clk 0:01:56.2]} 12. Rfxc1 {[%clk 0:01:06]}
12... e5 {[%clk 0:01:46]} 13. Nxc6 {[%clk 0:00:59.3]} 13... bxc6 {[%clk
0:01:46]} 14. Ba6 {[%clk 0:00:59.3]} 14... Rc7 {[%clk 0:01:39]} 15. Bg3 {[%clk
0:00:58.1]} 15... Bxc5 {[%clk 0:01:38.4]} 16. Nb3 {[%clk 0:00:51.3]} 16... Bb6
{[%clk 0:01:36]} 17. a4 {[%clk 0:00:47.4]} 17... f6 {[%clk 0:01:24]} 18. c4
{[%clk 0:00:41.3]} 18... dxc4 {[%clk 0:01:08.3]} 19. Rxc4 {[%clk 0:00:40.4]}
19... Nb8 {[%clk 0:01:02.2]} 20. a5 {[%clk 0:00:31.1]} 20... Bxe3 {[%clk
0:01:00.4]} 21. Bb5 {[%clk 0:00:19.1]} 21... Bh6 {[%clk 0:00:42.7]} 22. Rac1
{[%clk 0:00:16]} 22... O-O {[%clk 0:00:41.9]} 23. R1c3 {[%clk 0:00:12.9]} 23...
Rd8 {[%clk 0:00:39.7]} 24. h3 {[%clk 0:00:12.1]} 24... Rd1+ {[%clk 0:00:36.8]}
25. Kh2 {[%clk 0:00:12.2]} 25... Rb1 {[%clk 0:00:34]} 26. Ba4 {[%clk 0:00:08.4]}
26... Kf8 {[%clk 0:00:32.6]} 27. Nc5 {[%clk 0:00:08.2]} 27... Ke7 {[%clk
0:00:30]} 28. h4 {[%clk 0:00:06.8]} 28... Bf7 {[%clk 0:00:29.1]} 29. Re4 {[%clk
0:00:05]} 29... Bd5 {[%clk 0:00:28]} 30. Re2 {[%clk 0:00:04.1]} 30... Rb4 {[%clk
0:00:22.4]} 31. Bc2 {[%clk 0:00:03.4]} 31... Bc1 {[%clk 0:00:18.9]} 32. Bxh7
{[%clk 0:00:02.3]} 32... Bb2 {[%clk 0:00:18.3]} 33. Rcc2 {[%clk 0:00:01.3]}
33... Bd4 {[%clk 0:00:18.2]} 34. Nd3 {[%clk 0:00:01]} 34... Bb3 {[%clk 0:00:17]}
0-1

[Event "Betsys MČR v online bleskovém šachu 2021"]
[Site "Chess.com"]
[Date "2021.04.17"]
[Round "5"]
[White "Lisak007"]
[Black "marecek1754"]
[Result "1-0"]
[WhiteElo "1841"]
[BlackElo "2170"]
[TimeControl "180+1"]
[EndTime "9:47:27 PDT"]
[Termination "Uživatel Lisak007 zvítězil po vzdání soupeře"]

1. e4 {[%clk 0:03:00.9]} 1... e5 {[%clk 0:02:58.8]} 2. Nc3 {[%clk 0:03:00.1]}
2... Nf6 {[%clk 0:02:57.3]} 3. Bc4 {[%clk 0:02:59.9]} 3... Nxe4 {[%clk
0:02:56.9]} 4. Qh5 {[%clk 0:02:57.8]} 4... Nd6 {[%clk 0:02:56.5]} 5. Bb3 {[%clk
0:02:57]} 5... Nc6 {[%clk 0:02:55.2]} 6. Nb5 {[%clk 0:02:53]} 6... g6 {[%clk
0:02:54.9]} 7. Qf3 {[%clk 0:02:53]} 7... f5 {[%clk 0:02:55]} 8. Qd5 {[%clk
0:02:52.1]} 8... Qf6 {[%clk 0:02:55]} 9. Nxc7+ {[%clk 0:02:51.4]} 9... Kd8
{[%clk 0:02:55.5]} 10. Nxa8 {[%clk 0:02:51.9]} 10... b6 {[%clk 0:02:56]} 11. Qf3
{[%clk 0:02:29.6]} 11... Bb7 {[%clk 0:02:55.7]} 12. d3 {[%clk 0:02:19.6]} 12...
Nd4 {[%clk 0:02:50.8]} 13. Qg3 {[%clk 0:02:18.9]} 13... f4 {[%clk 0:02:38.8]}
14. Qh3 {[%clk 0:02:06.4]} 14... Bxa8 {[%clk 0:02:34.7]} 15. f3 {[%clk
0:01:53.6]} 15... N6f5 {[%clk 0:02:30.2]} 16. Bd2 {[%clk 0:01:45.1]} 16... Qc6
{[%clk 0:02:02.9]} 17. O-O-O {[%clk 0:01:39.4]} 17... Nxb3+ {[%clk 0:01:54.9]}
18. axb3 {[%clk 0:01:38.9]} 18... Nd4 {[%clk 0:01:55.2]} 19. Bc3 {[%clk
0:01:33.7]} 19... Bd6 {[%clk 0:01:26.9]} 20. Bxd4 {[%clk 0:01:33.3]} 20... exd4
{[%clk 0:01:26.7]} 21. Ne2 {[%clk 0:01:33.4]} 21... Qc5 {[%clk 0:01:18.2]} 22.
Qh4+ {[%clk 0:01:27.2]} 22... g5 {[%clk 0:01:15.8]} 23. Qh6 {[%clk 0:01:25.5]}
23... Re8 {[%clk 0:01:11.4]} 24. Rhe1 {[%clk 0:01:22.6]} 24... a5 {[%clk
0:00:59.4]} 25. Qg7 {[%clk 0:01:12.8]} 25... a4 {[%clk 0:00:40.6]} 26. Qxd4
{[%clk 0:01:11]} 26... axb3 {[%clk 0:00:37.2]} 27. Qxc5 {[%clk 0:01:08.6]} 27...
Bxc5 {[%clk 0:00:37.4]} 28. d4 {[%clk 0:00:58.4]} 28... bxc2 {[%clk 0:00:36.9]}
29. Kxc2 {[%clk 0:00:56.6]} 29... Be7 {[%clk 0:00:25.5]} 30. Kc3 {[%clk
0:00:54.8]} 30... d5 {[%clk 0:00:19.3]} 31. Nc1 {[%clk 0:00:54.5]} 31... Kd7
{[%clk 0:00:18.2]} 32. Nd3 {[%clk 0:00:52.8]} 32... Bc6 {[%clk 0:00:14.3]} 33.
Ne5+ {[%clk 0:00:52.3]} 33... Kc7 {[%clk 0:00:14.8]} 34. Kb3 {[%clk 0:00:43.4]}
34... Kb7 {[%clk 0:00:13.7]} 35. Nxc6 {[%clk 0:00:40.4]} 35... Kxc6 {[%clk
0:00:13.5]} 36. Rc1+ {[%clk 0:00:40.6]} 36... Kd7 {[%clk 0:00:13.5]} 37. Re5
{[%clk 0:00:38.1]} 37... Kd6 {[%clk 0:00:11.1]} 38. Kb4 {[%clk 0:00:31.2]} 38...
Ra8 {[%clk 0:00:06.7]} 39. Kb5 {[%clk 0:00:29.2]} 39... Bf6 {[%clk 0:00:06.4]}
40. Rc6+ {[%clk 0:00:27.7]} 40... Kd7 {[%clk 0:00:06.6]} 41. Rxf6 {[%clk
0:00:27.1]} 1-0

[Event "Betsys MČR v online bleskovém šachu 2021"]
[Site "Chess.com"]
[Date "2021.04.17"]
[Round "5"]
[White "Bolavey_Kotnik"]
[Black "Rozmetal"]
[Result "0-1"]
[WhiteElo "2332"]
[BlackElo "2145"]
[TimeControl "180+1"]
[EndTime "9:47:28 PDT"]
[Termination "Uživatel Rozmetal zvítězil na čas"]

1. e4 {[%clk 0:03:00.1]} 1... c5 {[%clk 0:02:57.1]} 2. Nf3 {[%clk 0:02:59.7]}
2... d6 {[%clk 0:02:56.8]} 3. d4 {[%clk 0:02:59]} 3... cxd4 {[%clk 0:02:57.7]}
4. Nxd4 {[%clk 0:02:59.7]} 4... Nf6 {[%clk 0:02:57.8]} 5. Nc3 {[%clk 0:03:00.1]}
5... Nc6 {[%clk 0:02:58.6]} 6. Be2 {[%clk 0:02:58]} 6... e6 {[%clk 0:02:57.5]}
7. O-O {[%clk 0:02:57.5]} 7... Be7 {[%clk 0:02:57.4]} 8. Be3 {[%clk 0:02:47.1]}
8... O-O {[%clk 0:02:56.6]} 9. f4 {[%clk 0:02:45.8]} 9... Qc7 {[%clk 0:02:51.9]}
10. Bf3 {[%clk 0:02:42.3]} 10... Nxd4 {[%clk 0:02:37.9]} 11. Bxd4 {[%clk
0:02:43.2]} 11... e5 {[%clk 0:02:37.8]} 12. Be3 {[%clk 0:02:43.4]} 12... exf4
{[%clk 0:02:37.1]} 13. Bxf4 {[%clk 0:02:44.3]} 13... Be6 {[%clk 0:02:37.4]} 14.
Qe1 {[%clk 0:02:41]} 14... Nd7 {[%clk 0:02:36.4]} 15. Kh1 {[%clk 0:02:34.2]}
15... Ne5 {[%clk 0:02:35.6]} 16. Rd1 {[%clk 0:02:18.6]} 16... a6 {[%clk
0:02:33.3]} 17. Qg3 {[%clk 0:02:13.8]} 17... Rfe8 {[%clk 0:02:12.7]} 18. Bh5
{[%clk 0:01:56.2]} 18... g6 {[%clk 0:02:10.7]} 19. Bxe5 {[%clk 0:01:13.3]} 19...
dxe5 {[%clk 0:02:06.2]} 20. Bg4 {[%clk 0:01:13.8]} 20... Bc4 {[%clk 0:01:40.2]}
21. Rd7 {[%clk 0:00:40]} 21... Qc5 {[%clk 0:01:27.4]} 22. Rfd1 {[%clk
0:00:35.1]} 22... Rad8 {[%clk 0:01:16.8]} 23. h3 {[%clk 0:00:34.5]} 23... Rxd7
{[%clk 0:01:15.2]} 24. Rxd7 {[%clk 0:00:35.4]} 24... Rd8 {[%clk 0:01:14.3]} 25.
Rxb7 {[%clk 0:00:20.4]} 25... Bg5 {[%clk 0:00:57.1]} 26. Qf3 {[%clk 0:00:16.3]}
26... Rd2 {[%clk 0:00:40.7]} 27. b3 {[%clk 0:00:11.7]} 27... Rf2 {[%clk
0:00:36.5]} 28. Qd1 {[%clk 0:00:10.2]} 28... Rf1+ {[%clk 0:00:33.5]} 29. Qxf1
{[%clk 0:00:08]} 29... Bxf1 {[%clk 0:00:33.2]} 30. Nd5 {[%clk 0:00:04]} 30...
Qf2 {[%clk 0:00:30.5]} 31. Bf3 {[%clk 0:00:04.2]} 31... Be2 {[%clk 0:00:18.2]}
32. Bxe2 {[%clk 0:00:01.9]} 32... Qxe2 {[%clk 0:00:16.1]} 33. c4 {[%clk
0:00:02]} 33... Qxe4 {[%clk 0:00:13.3]} 0-1

[Event "Betsys MČR v online bleskovém šachu 2021"]
[Site "Chess.com"]
[Date "2021.04.17"]
[Round "5"]
[White "tiger196223"]
[Black "tryskomys"]
[Result "0-1"]
[WhiteElo "1832"]
[BlackElo "1524"]
[TimeControl "180+1"]
[EndTime "9:47:28 PDT"]
[Termination "Uživatel tryskomys zvítězil na čas"]

1. d4 {[%clk 0:03:00.9]} 1... d5 {[%clk 0:02:52.1]} 2. Nf3 {[%clk 0:02:58.8]}
2... Nc6 {[%clk 0:02:51.7]} 3. c3 {[%clk 0:02:58]} 3... Nf6 {[%clk 0:02:46.1]}
4. Bg5 {[%clk 0:02:56.7]} 4... Bg4 {[%clk 0:02:42.9]} 5. Nbd2 {[%clk 0:02:56.1]}
5... e6 {[%clk 0:02:41]} 6. e3 {[%clk 0:02:55.5]} 6... Bd6 {[%clk 0:02:38.3]} 7.
Bd3 {[%clk 0:02:52.6]} 7... h6 {[%clk 0:02:34.6]} 8. Bh4 {[%clk 0:02:51.4]} 8...
Be7 {[%clk 0:02:10.4]} 9. Qc2 {[%clk 0:02:46.7]} 9... Qd7 {[%clk 0:02:05]} 10.
h3 {[%clk 0:02:44.6]} 10... Bxf3 {[%clk 0:02:02.7]} 11. Nxf3 {[%clk 0:02:43.6]}
11... Ng8 {[%clk 0:01:56.8]} 12. Bxe7 {[%clk 0:02:39.1]} 12... Ngxe7 {[%clk
0:01:56]} 13. Ne5 {[%clk 0:02:36.9]} 13... Nxe5 {[%clk 0:01:55]} 14. dxe5 {[%clk
0:02:36.6]} 14... c5 {[%clk 0:01:53.5]} 15. f4 {[%clk 0:02:30.7]} 15... Nc6
{[%clk 0:01:52.6]} 16. O-O {[%clk 0:02:25.7]} 16... O-O {[%clk 0:01:44.3]} 17.
Bb5 {[%clk 0:02:20.8]} 17... a6 {[%clk 0:01:41]} 18. Bxc6 {[%clk 0:02:19.4]}
18... bxc6 {[%clk 0:01:37.8]} 19. Rad1 {[%clk 0:02:04.6]} 19... Rab8 {[%clk
0:01:34.8]} 20. b3 {[%clk 0:02:02.1]} 20... Rbd8 {[%clk 0:01:30]} 21. Rd2 {[%clk
0:01:57.5]} 21... Qe7 {[%clk 0:01:28.7]} 22. Rfd1 {[%clk 0:01:53.3]} 22... f6
{[%clk 0:01:25.5]} 23. exf6 {[%clk 0:01:52]} 23... Qxf6 {[%clk 0:01:25.4]} 24.
c4 {[%clk 0:01:52.2]} 24... d4 {[%clk 0:01:23.6]} 25. exd4 {[%clk 0:01:51]}
25... cxd4 {[%clk 0:01:22.8]} 26. g3 {[%clk 0:01:40.5]} 26... e5 {[%clk
0:01:14.3]} 27. Rf2 {[%clk 0:01:17.5]} 27... exf4 {[%clk 0:01:02.8]} 28. Rxf4
{[%clk 0:01:14.6]} 28... Qd6 {[%clk 0:01:02.3]} 29. Rdf1 {[%clk 0:01:03.4]}
29... Rxf4 {[%clk 0:01:00.2]} 30. Rxf4 {[%clk 0:01:02.4]} 30... d3 {[%clk
0:01:00.4]} 31. Qd2 {[%clk 0:00:57.1]} 31... Re8 {[%clk 0:00:59.2]} 32. c5
{[%clk 0:00:42.4]} 32... Qxc5+ {[%clk 0:00:56.5]} 33. Kf1 {[%clk 0:00:35.4]}
33... Qd5 {[%clk 0:00:52.8]} 34. Qg2 {[%clk 0:00:13.7]} 34... d2 {[%clk
0:00:42]} 35. Qxd5+ {[%clk 0:00:10.4]} 35... cxd5 {[%clk 0:00:41.4]} 36. Rd4
{[%clk 0:00:10.3]} 36... Re1+ {[%clk 0:00:38.3]} 37. Kf2 {[%clk 0:00:10.3]}
37... d1=Q {[%clk 0:00:37.3]} 38. Rxd1 {[%clk 0:00:09.1]} 38... Rxd1 {[%clk
0:00:37.2]} 39. Ke2 {[%clk 0:00:08.6]} 39... Rh1 {[%clk 0:00:35.9]} 40. h4
{[%clk 0:00:06.4]} 40... Rh2+ {[%clk 0:00:35.8]} 41. Kd3 {[%clk 0:00:04.2]}
41... Rxa2 {[%clk 0:00:35]} 42. Kd4 {[%clk 0:00:04.3]} 42... Ra3 {[%clk
0:00:34.6]} 0-1

[Event "Betsys MČR v online bleskovém šachu 2021"]
[Site "Chess.com"]
[Date "2021.04.17"]
[Round "5"]
[White "Bancroft"]
[Black "SamikGame"]
[Result "0-1"]
[WhiteElo "1926"]
[BlackElo "1665"]
[TimeControl "180+1"]
[EndTime "9:47:30 PDT"]
[Termination "Uživatel SamikGame zvítězil na čas"]

1. d4 {[%clk 0:03:00.9]} 1... d5 {[%clk 0:02:57.6]} 2. c4 {[%clk 0:03:00]} 2...
e6 {[%clk 0:02:54.7]} 3. Nc3 {[%clk 0:02:59.2]} 3... Nf6 {[%clk 0:02:49.6]} 4.
cxd5 {[%clk 0:02:58.4]} 4... exd5 {[%clk 0:02:46.8]} 5. Bg5 {[%clk 0:02:58.2]}
5... Be7 {[%clk 0:02:41.1]} 6. Qc2 {[%clk 0:02:57.4]} 6... O-O {[%clk
0:02:37.9]} 7. e3 {[%clk 0:02:57.4]} 7... h6 {[%clk 0:02:34.6]} 8. Bh4 {[%clk
0:02:56.9]} 8... Be6 {[%clk 0:02:27.8]} 9. Bd3 {[%clk 0:02:56.1]} 9... c5 {[%clk
0:02:24.7]} 10. Nge2 {[%clk 0:02:54.7]} 10... cxd4 {[%clk 0:02:21.3]} 11. Nxd4
{[%clk 0:02:54.3]} 11... Nc6 {[%clk 0:02:19.3]} 12. Nxe6 {[%clk 0:02:20.8]}
12... fxe6 {[%clk 0:02:20.2]} 13. O-O {[%clk 0:02:19.2]} 13... Rc8 {[%clk
0:02:14.2]} 14. Qb3 {[%clk 0:02:00]} 14... Na5 {[%clk 0:01:57.6]} 15. Qa4 {[%clk
0:01:59.4]} 15... Nc4 {[%clk 0:01:48]} 16. b3 {[%clk 0:01:31.6]} 16... Nb2
{[%clk 0:01:31.5]} 17. Qd4 {[%clk 0:01:26.5]} 17... e5 {[%clk 0:01:15.7]} 18.
Qxe5 {[%clk 0:01:08]} 18... Nxd3 {[%clk 0:01:14.5]} 19. Qd4 {[%clk 0:01:04.4]}
19... Nc5 {[%clk 0:01:02.7]} 20. Rad1 {[%clk 0:00:54.3]} 20... Nce4 {[%clk
0:00:50.8]} 21. Ne2 {[%clk 0:00:42.3]} 21... Bc5 {[%clk 0:00:38.7]} 22. Qe5
{[%clk 0:00:37.6]} 22... Qe8 {[%clk 0:00:31.2]} 23. Qf5 {[%clk 0:00:35.2]} 23...
g6 {[%clk 0:00:23.8]} 24. Qh3 {[%clk 0:00:34.6]} 24... g5 {[%clk 0:00:20]} 25.
Bg3 {[%clk 0:00:34.6]} 25... h5 {[%clk 0:00:18.3]} 26. Qf5 {[%clk 0:00:18.2]}
26... h4 {[%clk 0:00:15.5]} 27. Be5 {[%clk 0:00:17.2]} 27... Nd7 {[%clk
0:00:12.2]} 28. Rxd5 {[%clk 0:00:05.4]} 28... Rxf5 {[%clk 0:00:11]} 29. Rfd1
{[%clk 0:00:03]} 29... Rxe5 {[%clk 0:00:10.4]} 30. R5d3 {[%clk 0:00:02]} 30...
Ndf6 {[%clk 0:00:10]} 31. f4 {[%clk 0:00:01.9]} 31... gxf4 {[%clk 0:00:07.4]}
32. Nxf4 {[%clk 0:00:02.3]} 32... Rf5 {[%clk 0:00:07.3]} 0-1

[Event "Betsys MČR v online bleskovém šachu 2021"]
[Site "Chess.com"]
[Date "2021.04.17"]
[Round "5"]
[White "Tomasn2003"]
[Black "Kijonker"]
[Result "1-0"]
[WhiteElo "1136"]
[BlackElo "1462"]
[TimeControl "180+1"]
[EndTime "9:47:31 PDT"]
[Termination "Uživatel Tomasn2003 zvítězil matem"]

1. b3 {[%clk 0:03:00.9]} 1... b6 {[%clk 0:02:58.2]} 2. Bb2 {[%clk 0:03:01.1]}
2... Bb7 {[%clk 0:02:57.7]} 3. Nc3 {[%clk 0:03:00.4]} 3... Nf6 {[%clk
0:02:53.7]} 4. e3 {[%clk 0:03:00.1]} 4... e6 {[%clk 0:02:50]} 5. Nf3 {[%clk
0:02:55.5]} 5... Be7 {[%clk 0:02:43.7]} 6. Be2 {[%clk 0:02:52.1]} 6... O-O
{[%clk 0:02:42.3]} 7. O-O {[%clk 0:02:52.2]} 7... Nc6 {[%clk 0:02:38.9]} 8. d4
{[%clk 0:02:52.2]} 8... d5 {[%clk 0:02:36.1]} 9. Bb5 {[%clk 0:02:48.5]} 9... Nb4
{[%clk 0:02:32.3]} 10. Ba3 {[%clk 0:02:44.1]} 10... c6 {[%clk 0:02:30]} 11. Be2
{[%clk 0:02:39.2]} 11... c5 {[%clk 0:02:27.9]} 12. dxc5 {[%clk 0:02:37.4]} 12...
bxc5 {[%clk 0:02:23.9]} 13. Bxb4 {[%clk 0:02:29.7]} 13... cxb4 {[%clk
0:02:23.3]} 14. Nb5 {[%clk 0:02:28.8]} 14... a6 {[%clk 0:02:20.9]} 15. Nbd4
{[%clk 0:02:23.5]} 15... Rc8 {[%clk 0:02:16.4]} 16. Ne5 {[%clk 0:02:16.8]} 16...
Bd6 {[%clk 0:02:13]} 17. f4 {[%clk 0:02:12.5]} 17... Ne4 {[%clk 0:02:11.6]} 18.
Bd3 {[%clk 0:01:57.9]} 18... Bxe5 {[%clk 0:02:08]} 19. fxe5 {[%clk 0:01:56.9]}
19... a5 {[%clk 0:01:56.5]} 20. Bxe4 {[%clk 0:01:50.5]} 20... dxe4 {[%clk
0:01:55.1]} 21. Rc1 {[%clk 0:01:45.9]} 21... Rc3 {[%clk 0:01:52.7]} 22. Re1
{[%clk 0:01:33.7]} 22... Qb6 {[%clk 0:01:37.2]} 23. Qg4 {[%clk 0:01:21.3]} 23...
Ba6 {[%clk 0:01:11.8]} 24. Kf2 {[%clk 0:01:09.9]} 24... Rfc8 {[%clk 0:01:06]}
25. Qd1 {[%clk 0:00:56.4]} 25... Qc5 {[%clk 0:00:30.3]} 26. Qd2 {[%clk
0:00:20.4]} 26... Qxe5 {[%clk 0:00:23]} 27. g3 {[%clk 0:00:18.4]} 27... Qf6+
{[%clk 0:00:21.8]} 28. Kg2 {[%clk 0:00:18.2]} 28... e5 {[%clk 0:00:11.4]} 29.
Rf1 {[%clk 0:00:17.2]} 29... Qb6 {[%clk 0:00:09.3]} 30. Qf2 {[%clk 0:00:11.6]}
30... Qa7 {[%clk 0:00:03.6]} 31. Ne2 {[%clk 0:00:09.5]} 31... Qxe3 {[%clk
0:00:03.4]} 32. Qxf7+ {[%clk 0:00:08.6]} 32... Kh8 {[%clk 0:00:03]} 33. Qf8+
{[%clk 0:00:08.9]} 33... Rxf8 {[%clk 0:00:02.7]} 34. Rxf8# {[%clk 0:00:09.5]}
1-0

[Event "Betsys MČR v online bleskovém šachu 2021"]
[Site "Chess.com"]
[Date "2021.04.17"]
[Round "5"]
[White "Drak1961"]
[Black "Petroniuss"]
[Result "0-1"]
[WhiteElo "2082"]
[BlackElo "2311"]
[TimeControl "180+1"]
[EndTime "9:47:32 PDT"]
[Termination "Uživatel Petroniuss zvítězil na čas"]

1. d4 {[%clk 0:02:59.6]} 1... d5 {[%clk 0:02:59.7]} 2. Nf3 {[%clk 0:02:59.3]}
2... Nf6 {[%clk 0:02:59.4]} 3. g3 {[%clk 0:02:59.1]} 3... c5 {[%clk 0:02:58.4]}
4. Bg2 {[%clk 0:02:58.1]} 4... Nc6 {[%clk 0:02:57.4]} 5. O-O {[%clk 0:02:56.8]}
5... e6 {[%clk 0:02:55.2]} 6. c4 {[%clk 0:02:55.7]} 6... dxc4 {[%clk 0:02:54.9]}
7. Qa4 {[%clk 0:02:51.5]} 7... a6 {[%clk 0:02:50]} 8. dxc5 {[%clk 0:02:42.2]}
8... Bxc5 {[%clk 0:02:46.8]} 9. Qxc4 {[%clk 0:02:39.6]} 9... Qe7 {[%clk
0:02:41.5]} 10. Bg5 {[%clk 0:02:30.2]} 10... O-O {[%clk 0:02:40.9]} 11. Bxf6
{[%clk 0:02:27.4]} 11... gxf6 {[%clk 0:02:41]} 12. Nc3 {[%clk 0:02:24.9]} 12...
b5 {[%clk 0:02:41]} 13. Qg4+ {[%clk 0:02:09.5]} 13... Kh8 {[%clk 0:02:41.1]} 14.
Qh5 {[%clk 0:02:06.4]} 14... Bb7 {[%clk 0:01:52.1]} 15. Ne4 {[%clk 0:02:01.2]}
15... Bb6 {[%clk 0:01:46]} 16. Rfd1 {[%clk 0:01:48.2]} 16... Rad8 {[%clk
0:01:37.4]} 17. Qh6 {[%clk 0:01:47]} 17... Rxd1+ {[%clk 0:01:14.5]} 18. Rxd1
{[%clk 0:01:45]} 18... Rg8 {[%clk 0:01:14.7]} 19. Nh4 {[%clk 0:01:29.6]} 19...
Bd4 {[%clk 0:00:55.2]} 20. e3 {[%clk 0:01:22]} 20... Bxb2 {[%clk 0:00:54.6]} 21.
Nd6 {[%clk 0:01:19.7]} 21... Ba8 {[%clk 0:00:50]} 22. Qh5 {[%clk 0:01:02]} 22...
Ne5 {[%clk 0:00:42.4]} 23. Bxa8 {[%clk 0:00:54.2]} 23... Rxa8 {[%clk 0:00:41.3]}
24. Ndf5 {[%clk 0:00:24.7]} 24... exf5 {[%clk 0:00:33]} 25. Nxf5 {[%clk
0:00:24.6]} 25... Qf8 {[%clk 0:00:29.8]} 26. Rd2 {[%clk 0:00:16.8]} 26... Bc3
{[%clk 0:00:25.9]} 27. Rc2 {[%clk 0:00:16]} 27... b4 {[%clk 0:00:26]} 28. Qh4
{[%clk 0:00:14.8]} 28... Ng6 {[%clk 0:00:22.5]} 29. Qg4 {[%clk 0:00:08.7]} 29...
Rd8 {[%clk 0:00:21.4]} 30. h4 {[%clk 0:00:05.8]} 30... Ne5 {[%clk 0:00:16.5]}
31. Qf4 {[%clk 0:00:05]} 31... Nd3 {[%clk 0:00:13.2]} 32. Qg4 {[%clk 0:00:02.1]}
32... Ne1 {[%clk 0:00:09.6]} 33. Rc1 {[%clk 0:00:01.3]} 33... Nd3 {[%clk
0:00:09.1]} 0-1